bitfinex/quotes_ETHUSD_20240602
["timestamp","ask_amount","ask_price","bid_price","bid_amount"]
[1717309960364,9.94103,3815.3,3814.6,5.380813]
[1717309960560,2.2547,3815.5,3814.9,0.55]
[1717309977463,2.2547,3815.5,3814.2,2.4981]
[1717309977654,2.3233,3814.9,3814.3,4.55]
[1717309978053,2.3233,3814.9,3814.3,0.55]
[1717309979035,2.3233,3814.9,3814.2,2.62176]
[1717309979241,2.3233,3814.9,3814.4,0.55]
[1717309982076,2.62129,3815.0,3814.4,0.55]
[1717309982262,2.62129,3815.0,3814.6,0.55]
[1717309982443,2.62103,3815.3,3814.6,0.55]
[1717309984360,2.62019314,3815.3,3814.6,0.55]
[1717309985282,2.62019314,3815.3,3814.7,0.317159]
[1717309986248,2.62019314,3815.3,3814.8,0.55]
[1717309993111,2.62083,3815.6,3814.8,0.55]
[1717309993689,2.62083,3815.6,3815.0,0.55]
[1717309993908,2.62083,3815.6,3815.1,0.29322]
[1717310004886,2.62083,3815.6,3814.7,0.317159]
[1717310004887,2.4608,3815.3,3814.7,0.317159]
[1717310011375,2.4608,3815.3,3814.7,0.867159]
[1717310015653,2.62109,3815.2,3814.7,0.867159]
[1717310015982,2.62109,3815.2,3814.8,0.5793999]
[1717310030985,2.62109,3815.2,3814.7,0.55]
[1717310037837,2.62109,3815.2,3814.5,2.3054]
[1717310038044,2.62109,3815.2,3814.7,0.55]
[1717310044770,2.62109,3815.2,3814.5,0.55]
[1717310044967,2.62109,3815.2,3814.6,0.55646]
[1717310045344,2.3256,3815.1,3814.6,0.55646]
[1717310046476,2.6214,3814.8,3814.0,5.01481]
[1717310046627,2.6214,3814.8,3814.0,3.17191]
[1717310046824,2.6214,3814.8,3814.0,0.55]
[1717310048843,2.6214,3814.8,3814.2,0.55]
[1717310052479,2.6214,3814.8,3813.9,0.55656616]
[1717310052666,2.6214,3814.8,3814.2,0.55]
[1717310054599,2.3256,3814.7,3814.2,0.55]
[1717310055978,2.3256,3814.7,3813.9,0.55656616]
[1717310056296,2.3256,3814.7,3814.2,0.55]
[1717310059800,2.62151,3814.6,3814.0,0.55715662]
[1717310059984,2.62151,3814.6,3814.2,0.55]
[1717310065619,2.62151,3814.6,3814.1,0.55]
[1717310065620,2.2875,3814.5,3814.1,0.55]
[1717310074800,2.2875,3814.5,3814.0,0.55715662]
[1717310075106,2.2875,3814.5,3813.9,0.55]
[1717310078757,2.2875,3814.5,3814.1,0.55]
[1717310084073,2.62151,3814.6,3814.1,0.55]
[1717310085675,2.4286,3814.5,3813.7,2.6221]
[1717310085977,2.4286,3814.5,3813.9,0.55]
[1717310086287,2.4286,3814.5,3814.0,0.31721]
[1717310099870,2.62151,3814.6,3814.2,0.55]
[1717310100369,2.62151,3814.6,3814.4,0.55]
[1717310101660,2.2691,3814.8,3814.4,0.55]
[1717310102305,2.62132,3814.9,3814.4,0.55]
[1717310105595,9.94108,3815.3,3814.8,0.55]
[1717310105898,2.62108,3815.3,3814.8,0.55]
[1717310107182,2.4802,3815.6,3814.8,0.55]
[1717310107386,2.4802,3815.6,3815.0,0.55]
[1717310117472,2.62081,3815.7,3815.0,0.55]
[1717310119053,2.62081,3815.7,3815.1,2.2914]
[1717310119381,2.62081,3815.7,3815.2,0.55]
[1717310119549,2.62081,3815.7,3815.2,0.8658544]
[1717310121032,2.4057,3815.6,3815.2,0.3158544]
[1717310121236,2.4057,3815.6,3815.0,0.55]
[1717310123274,2.62081,3815.7,3815.0,0.55]
[1717310130026,2.62081,3815.7,3814.9,0.317144]
[1717310130227,2.62081,3815.7,3814.9,0.867144]
[1717310130415,2.62081,3815.7,3815.1,0.55]
[1717310131727,0.06026678,3815.6,3815.1,0.55]
[1717310151111,2.4996,3815.5,3815.1,0.55]
[1717310151314,2.4996,3815.5,3815.0,0.5779844]
[1717310151619,0.05842167,3815.4,3815.0,0.5779844]
[1717310151777,0.05842167,3815.4,3815.1,0.40664284]
[1717310152516,0.05842167,3815.4,3814.9,0.867144]
[1717310160844,2.2785,3815.3,3814.9,0.317144]
[1717310161143,2.2785,3815.3,3814.5,2.62155]
[1717310161144,2.2785,3815.1,3814.5,2.62155]
[1717310161294,2.2785,3815.1,3814.5,3.17155]
[1717310161498,0.05884467,3815.0,3814.5,3.17155]
[1717310161794,2.2785,3815.1,3814.7,0.55]
[1717310161985,0.05885739,3815.0,3814.7,0.867155]
[1717310162702,0.05885739,3815.0,3814.7,0.317155]
[1717310162996,4.89971,3815.1,3814.4,0.55]
[1717310163215,0.05887012,3815.0,3814.4,0.55]
[1717310163388,0.05887012,3815.0,3814.4,1.495927]
[1717310165209,0.05887012,3815.0,3814.6,0.55]
[1717310190670,2.3895,3814.9,3814.6,0.55]
[1717310190823,0.05718618,3814.8,3814.6,0.55]
[1717310200476,5.03161,3815.1,3814.6,0.55]
[1717310200678,0.05714593,3815.0,3814.6,0.55]
[1717310201253,0.05714593,3815.0,3814.6,0.83824]
[1717310207238,5.03161,3815.1,3814.6,0.83824]
[1717310210481,5.03161,3815.1,3814.8,0.55]
[1717310212821,2.62121,3815.1,3814.8,0.55]
[1717310213233,0.05718675,3815.0,3814.8,0.55]
[1717310213923,2.62096,3815.4,3814.9,0.572408]
[1717310214082,0.05726614,3815.3,3815.2,0.55]
[1717310215326,0.05726614,3815.3,3815.0,2.8144]
[1717310216002,0.05726614,3815.3,3815.0,0.55]
[1717310218100,0.05726614,3815.3,3815.0,0.83144]
[1717310218317,2.2512,3815.6,3815.0,0.83144]
[1717310218485,2.43730037,3815.5,3815.0,0.83144]
[1717310218685,0.05744046,3815.5,3815.0,0.83144]
[1717310228549,0.05744046,3815.5,3815.3,0.55]
[1717310228749,0.05744046,3815.5,3815.3,0.873814]
[1717310228949,2.62075,3815.7,3815.3,0.873814]
[1717310229264,0.05712809,3815.6,3815.3,0.873814]
[1717310235524,0.05712809,3815.6,3815.3,0.323814]
[1717310235839,0.05712809,3815.6,3815.1,2.9567]
[1717310235840,0.05712809,3815.6,3815.1,0.55]
[1717310239268,0.05712809,3815.6,3815.2,2.3957]
[1717310239571,2.62056,3816.0,3815.2,2.3957]
[1717310239768,2.62069,3815.8,3815.2,2.3957]
[1717310239939,0.05722263,3815.7,3815.1,0.55]
[1717310240270,0.05722263,3815.7,3815.1,1.106688]
[1717310242566,0.05722263,3815.7,3815.1,0.556688]
[1717310242770,2.62083,3815.6,3814.9,2.9457]
[1717310242989,0.05713582,3815.5,3814.9,2.9457]
[1717310245903,0.05713582,3815.5,3814.9,0.55]
[1717310246701,0.05713582,3815.5,3814.7,4.97481]
[1717310246865,2.3769,3815.4,3814.9,0.55]
[1717310247066,2.43410276,3815.4,3814.9,0.55]
[1717310247601,2.43410276,3815.4,3814.9,1.131305]
[1717310250407,2.43410276,3815.4,3814.7,2.62141]
[1717310250588,2.43410276,3815.4,3814.8,0.55]
[1717310252798,2.3769,3815.2,3814.4,2.62162]
[1717310253003,2.3769,3815.2,3814.4,3.17162]
[1717310253202,0.05589488,3815.1,3814.5,0.552502]
[1717310253684,0.05589488,3815.1,3814.6,0.55]
[1717310255982,2.67710488,3815.1,3814.5,0.55]
[1717310261058,2.4255,3815.0,3814.4,2.62162]
[1717310261354,2.4255,3815.0,3814.5,0.812162]
[1717310261672,0.05592387,3814.9,3814.5,0.812162]
[1717310276810,2.62138,3814.8,3814.0,2.62187]
[1717310276951,2.4636,3814.7,3814.0,0.55]
[1717310277147,0.05580098,3814.6,3814.0,0.55]
[1717310278313,2.67730098,3814.6,3814.0,0.55]
[1717310278671,2.67730098,3814.6,3814.4,0.55]
[1717310283703,5.00450098,3814.6,3814.4,0.55]
[1717310283929,5.00450098,3814.6,3814.0,0.55]
[1717310284111,5.00450098,3814.6,3814.1,0.317192]
[1717310285927,5.00450098,3814.6,3814.2,0.55]
[1717310286824,5.00450098,3814.6,3814.1,0.867192]
[1717310289514,5.00450098,3814.6,3814.3,0.55]
[1717310289515,0.05580098,3814.6,3814.3,0.55]
[1717310290020,0.05567287,3814.5,3814.3,0.55]
[1717310290223,2.3272,3814.8,3814.3,0.55]
[1717310290541,0.05573429,3814.7,3814.5,0.55]
[1717310290942,2.3272,3814.8,3814.3,0.55]
[1717310291140,0.05570358,3814.6,3814.3,0.55]
[1717310291339,0.05573429,3814.7,3814.3,0.55]
[1717310291530,0.05567287,3814.5,3814.4,0.13973032]
[1717310291729,4.94851,3814.9,3814.4,0.13973032]
[1717310292152,0.055765,3814.8,3814.4,0.13973032]
[1717310304073,0.055765,3814.8,3814.3,0.55]
[1717310304268,2.62144,3814.7,3813.8,2.62203]
[1717310304583,0.05194485,3814.6,3814.0,0.55]
[1717310304985,0.05194485,3814.6,3813.8,2.62203]
[1717310305206,2.2983,3814.5,3814.1,0.55]
[1717310305513,0.05189216,3814.4,3814.1,0.55]
[1717310306501,0.05189216,3814.4,3813.8,2.62203]
[1717310306777,0.05189216,3814.4,3813.8,3.17203]
[1717310308201,0.05189216,3814.4,3813.8,3.489233]
[1717310309817,0.05189216,3814.4,3813.8,0.867203]
[1717310310724,0.05189216,3814.4,3813.8,0.317203]
[1717310311625,2.2983,3814.2,3813.5,2.62225]
[1717310311829,0.05167571,3814.1,3813.7,0.55]
[1717310313514,0.05167571,3814.1,3813.5,0.55]
[1717310315345,0.05167571,3814.1,3813.6,0.55]
[1717310317222,2.67358571,3814.1,3813.6,0.55]
[1717310318547,2.4467,3814.0,3813.6,0.55]
[1717310318909,0.05158191,3813.9,3813.6,0.55]
[1717310352334,2.4308,3813.8,3813.4,8e-06]
[1717310352539,2.4308,3813.8,3813.4,0.550008]
[1717310352874,2.62212,3813.7,3813.4,8e-06]
[1717310353096,0.04949355,3813.6,3813.4,8e-06]
[1717310360993,2.3996,3813.5,3813.4,8e-06]
[1717310361202,2.44892501,3813.5,3813.4,8e-06]
[1717310367092,2.95602951,3813.5,3813.4,8e-06]
[1717310369077,2.44892501,3813.5,3813.4,8e-06]
[1717310376612,0.04932501,3813.5,3813.4,8e-06]
[1717310376974,5.02582,3813.7,3813.4,8e-06]
[1717310377175,0.04932692,3813.5,3813.4,8e-06]
[1717310377697,5.02582,3813.7,3813.4,8e-06]
[1717310378027,2.62226,3813.5,3813.4,8e-06]
[1717310378325,2.67157421,3813.5,3813.4,8e-06]
[1717310405315,3.17910163,3813.5,3813.4,8e-06]
[1717310409353,2.67157421,3813.5,3813.4,8e-06]
[1717310428355,5.16867421,3813.5,3813.4,8e-06]
[1717310431420,8.90789493,3813.5,3813.4,8e-06]
[1717310431610,10.50323127,3813.5,3813.4,8e-06]
[1717310432140,12.40832657,3813.5,3813.4,8e-06]
[1717310432333,11.74406393,3813.5,3813.4,8e-06]
[1717310432735,12.07443787,3813.5,3813.4,8e-06]
[1717310441873,11.50747715,3813.5,3813.4,8e-06]
[1717310442075,12.07449597,3813.5,3813.4,8e-06]
[1717310443375,13.64954826,3813.5,3813.4,8e-06]
[1717310444440,12.07449603,3813.5,3813.4,8e-06]
[1717310444863,11.74442503,3813.5,3813.4,8e-06]
[1717310447372,12.07461667,3813.5,3813.4,8e-06]
[1717310450678,17.45987667,3813.5,3813.4,8e-06]
[1717310450998,21.00987667,3813.5,3813.4,8e-06]
[1717310453148,21.75987667,3813.5,3813.4,8e-06]
[1717310458564,21.75997221,3813.5,3813.4,8e-06]
[1717310466937,21.75998438,3813.5,3813.4,8e-06]
[1717310468824,21.75998397,3813.5,3813.4,8e-06]
[1717310469652,21.75999481,3813.5,3813.4,8e-06]
[1717310470055,21.75999894,3813.5,3813.4,8e-06]
[1717310473049,24.38225894,3813.5,3813.4,8e-06]
[1717310473232,23.81511779,3813.5,3813.4,8e-06]
[1717310473433,24.38228272,3813.5,3813.4,8e-06]
[1717310476308,25.70442194,3813.5,3813.4,8e-06]
[1717310479655,5.2463,3812.2,3812.1,2.3697]
[1717310479852,6.3463,3812.2,3812.1,2.3697]
[1717310480161,7.73160433,3812.2,3812.1,2.3697]
[1717310484052,7.7316434,3812.2,3812.1,2.3697]
[1717310486954,2.62378,3811.3,3810.9,2.4272]
[1717310487156,0.06768589,3811.2,3811.0,0.29772]
[1717310487355,0.06768589,3811.2,3811.1,2.4272]
[1717310487555,0.75,3811.2,3811.1,2.4272]
[1717310487792,0.81766274,3811.2,3811.1,2.4272]
[1717310494131,1.36766274,3811.2,3811.1,2.4272]
[1717310495033,2.18672894,3811.2,3810.1,2.4272]
[1717310495218,0.55,3810.8,3810.1,2.4272]
[1717310495549,0.75,3810.2,3810.1,2.4272]
[1717310496838,0.81715905,3810.2,3810.1,2.4272]
[1717310531336,0.06715905,3810.2,3810.1,2.4272]
[1717310531631,7.32,3810.9,3810.2,2.62451]
[1717310531835,7.32,3810.9,3810.4,0.55]
[1717310532022,0.75,3810.5,3810.4,0.55]
[1717310532326,0.81482444,3810.5,3810.4,0.55]
[1717310532863,0.81482444,3810.5,3810.4,2.8481]
[1717310533003,0.06482444,3810.5,3810.4,3.4513792]
[1717310533450,7.32,3810.9,3810.6,2.2981]
[1717310533621,7.32,3810.9,3810.7,0.55]
[1717310533823,0.75,3810.8,3810.7,0.55]
[1717310535408,0.56727634,3811.4,3810.7,0.55]
[1717310535610,4.19952901,3811.6,3810.9,0.55]
[1717310535843,0.56726929,3811.5,3810.9,0.55]
[1717310536064,0.75,3811.0,3810.9,0.55]
[1717310537238,0.75,3811.0,3810.9,3.08691]
[1717310540318,0.81523526,3811.0,3810.9,3.08691]
[1717310546211,0.81523526,3811.0,3810.9,2.8021]
[1717310553559,0.81523526,3811.0,3810.9,2.9739]
[1717310553759,0.81523526,3811.0,3810.9,5.9739]
[1717310553760,0.44386413,3811.0,3810.9,5.9739]
[1717310553961,5.06644,3812.8,3811.9,5.04726]
[1717310554260,2.88204437,3814.3,3812.3,0.55]
[1717310554261,5.0662,3813.2,3812.3,0.55]
[1717310554434,5.0662,3813.2,3812.2,2.62312]
[1717310554435,0.75,3812.4,3812.2,2.62312]
[1717310554638,5.0662,3813.2,3812.4,0.55]
[1717310555037,0.75,3812.5,3812.4,0.55]
[1717310555425,0.80921855,3812.5,3812.4,0.55]
[1717310561335,0.80921855,3812.5,3812.4,0.867312]
[1717310561870,0.05921855,3812.5,3812.4,0.867312]
[1717310562034,2.4783,3813.4,3812.7,2.62281]
[1717310562360,0.05979407,3813.3,3812.8,0.55]
[1717310562537,0.75,3812.9,3812.8,0.55]
[1717310562941,0.80999488,3812.9,3812.8,0.55]
[1717310566870,0.80999488,3812.9,3812.8,0.867281]
[1717310567473,0.05999488,3812.9,3812.8,0.867281]
[1717310567832,2.4918,3813.4,3812.8,0.867281]
[1717310568036,2.4918,3813.4,3813.0,0.55]
[1717310569271,2.4918,3813.4,3812.7,2.62281]
[1717310569747,2.4918,3813.4,3812.8,0.55]
[1717310570439,2.4918,3813.4,3812.7,2.62281]
[1717310570672,0.05995949,3813.3,3812.7,3.17281]
[1717310577185,2.62257,3813.1,3812.3,2.62304]
[1717310577389,2.3821,3813.0,3812.3,2.62304]
[1717310577554,2.4414126,3813.0,3812.3,2.62304]
[1717310578891,2.4414126,3813.0,3812.3,3.17304]
[1717310581398,2.4414126,3813.0,3812.5,0.55]
[1717310582058,2.4414126,3813.0,3812.3,2.62304]
[1717310582254,2.4414126,3813.0,3812.5,0.55]
[1717310584564,2.4414126,3813.0,3812.3,3.17304]
[1717310584972,2.4414126,3813.0,3811.9,2.62331]
[1717310585293,2.4268,3812.8,3811.9,3.17331]
[1717310585497,2.4268,3812.8,3811.9,2.62331]
[1717310585799,2.4268,3812.6,3812.0,0.55]
[1717310586293,0.05771179,3812.5,3812.0,0.55]
[1717310590168,0.05771179,3812.5,3811.5,2.62358]
[1717310590388,0.05771179,3812.5,3811.9,0.55]
[1717310593494,0.05771179,3812.5,3811.7,0.55]
[1717310595978,0.05771179,3812.5,3811.9,0.55]
[1717310597674,5.03022,3812.4,3811.9,0.55]
[1717310598088,0.05726786,3812.3,3811.9,0.55]
[1717310599710,0.05726786,3812.3,3811.7,2.62347]
[1717310600011,0.05726786,3812.3,3811.8,0.55]
[1717310600817,0.05726786,3812.3,3811.7,3.435817]
[1717310601193,0.05726786,3812.3,3811.7,0.812347]
[1717310601510,0.05726786,3812.3,3811.7,0.55]
[1717310602684,2.62321,3812.2,3811.3,2.6237]
[1717310602886,2.2802,3812.1,3811.5,0.55]
[1717310603086,2.33742736,3812.1,3811.5,0.55]
[1717310606392,2.62332,3812.0,3811.5,0.55]
[1717310606592,2.68046358,3812.0,3811.3,2.6237]
[1717310606795,2.68046358,3812.0,3811.3,3.43607]
[1717310608637,2.68046358,3812.0,3811.3,0.26237]
[1717310609009,2.68046358,3812.0,3811.3,0.81237]
[1717310610335,2.62343,3811.8,3811.2,0.55]
[1717310610646,0.05688188,3811.7,3811.2,0.55]
[1717310611422,2.2802,3811.5,3810.7,4.90308]
[1717310611590,2.2802,3811.5,3810.8,0.490308]
[1717310611797,2.2802,3811.5,3810.9,0.55]
[1717310612131,0.05674803,3811.4,3810.9,0.55]
[1717310613896,0.05674803,3811.4,3811.3,0.55]
[1717310614435,0.05467718,3811.4,3811.3,0.55]
[1717310614595,2.62357,3811.6,3811.3,0.55]
[1717310614796,0.05471461,3811.4,3811.1,0.55]
[1717310615143,2.62357,3811.6,3811.1,0.55]
[1717310615365,0.05467195,3811.3,3811.1,0.55]
[1717310615503,2.62357,3811.6,3810.9,2.2789]
[1717310615843,2.62357,3811.6,3811.1,0.55]
[1717310616023,0.05470811,3811.5,3811.1,0.55]
[1717310621243,0.05470811,3811.5,3810.8,0.490308]
[1717310621473,2.47800811,3811.5,3810.8,1.040308]
[1717310623493,2.47800811,3811.5,3810.9,0.5943388]
[1717310638073,2.47800811,3811.5,3810.7,3.17418]
[1717310642239,2.4253,3811.3,3810.4,2.62439]
[1717310642550,2.4253,3811.1,3810.4,0.55]
[1717310642841,0.05241315,3811.0,3810.4,0.55]
[1717310642984,0.05241315,3811.0,3810.5,0.29092]
[1717310643679,0.05241315,3811.0,3810.6,0.55]
[1717310644975,0.05241315,3811.0,3810.5,0.29092]
[1717310645178,0.05241315,3811.0,3810.6,0.55]
[1717310647905,0.05241315,3811.0,3810.4,0.55]
[1717310648689,0.05241315,3811.0,3810.3,2.6244]
[1717310648896,2.4253,3810.8,3809.9,2.62467]
[1717310649205,0.05220491,3810.7,3810.2,0.55]
[1717310649409,2.4253,3810.8,3810.2,0.55]
[1717310649723,0.05228292,3810.6,3810.2,0.55]
[1717310649889,0.05231311,3810.7,3810.2,0.55]
[1717310650094,2.4253,3810.8,3810.2,0.55]
[1717310650292,0.05228292,3810.6,3810.2,0.55]
[1717310650510,2.4253,3810.8,3810.2,1.1296207]
[1717310650796,0.05226315,3810.7,3810.2,1.1296207]
[1717310651003,2.4253,3810.8,3810.2,1.1296207]
[1717310651209,0.05223297,3810.6,3810.2,1.1296207]
[1717310651410,2.4253,3810.8,3810.4,0.55]
[1717310651718,0.05220278,3810.5,3810.4,0.55]
[1717310652034,2.4253,3810.8,3810.4,0.55]
[1717310652230,0.05221527,3810.5,3810.4,0.55]
[1717310652436,2.4253,3810.8,3810.4,0.55]
[1717310652635,0.05222776,3810.5,3810.4,0.55]
[1717310652837,2.4253,3810.8,3810.4,0.55]
[1717310653053,0.05222776,3810.5,3810.4,0.55]
[1717310653267,2.4253,3810.8,3810.4,0.55]
[1717310653549,0.05224025,3810.5,3810.4,0.55]
[1717310653719,2.4253,3810.8,3810.2,0.5796207]
[1717310653898,2.4253,3810.8,3810.4,0.55]
[1717310654099,0.05230064,3810.7,3810.4,0.55]
[1717310654414,2.4253,3810.8,3810.4,0.55]
[1717310654610,0.05219551,3810.6,3810.4,0.55]
[1717310654827,2.4253,3810.8,3810.4,0.55]
[1717310655026,0.05216532,3810.5,3810.4,0.55]
[1717310655230,0.05216532,3810.5,3810.4,0.82192321]
[1717310655403,2.4253,3810.8,3810.4,0.82192321]
[1717310655605,0.05217782,3810.5,3810.4,0.82192321]
[1717310655816,2.4253,3810.8,3810.4,0.82192321]
[1717310656117,0.05217782,3810.5,3810.4,0.82192321]
[1717310656306,2.4253,3810.8,3810.4,0.82192321]
[1717310656863,0.05226318,3810.7,3810.4,0.82192321]
[1717310657140,2.4253,3810.8,3810.4,0.82192321]
[1717310657446,0.05227568,3810.7,3810.4,0.82192321]
[1717310657606,2.4253,3810.8,3810.4,0.82192321]
[1717310657804,0.05224549,3810.6,3810.4,0.82192321]
[1717310658001,2.4253,3810.8,3810.4,0.27192321]
[1717310658241,2.4253,3810.8,3810.4,0.55]
[1717310658242,0.05227568,3810.7,3810.4,0.55]
[1717310658452,2.4253,3810.8,3810.4,0.55]
[1717310658597,2.4253,3810.8,3810.3,2.62441]
[1717310658598,0.05213234,3810.6,3810.5,2.62431]
[1717310658803,4.90815,3811.2,3810.5,3.17431]
[1717310658999,2.62385,3811.2,3810.8,0.55]
[1717310660305,0.05222403,3811.1,3810.8,0.55]
[1717310664064,2.2843,3811.4,3810.8,0.55]
[1717310664396,0.05230036,3811.0,3810.8,0.55]
[1717310664560,2.2843,3811.4,3810.8,0.55]
[1717310665165,0.05242103,3811.3,3810.8,0.55]
[1717310692438,9.94366,3811.5,3810.8,0.55]
[1717310692642,0.04874374,3811.2,3810.8,0.55]
[1717310692907,0.04871356,3811.1,3810.8,0.55]
[1717310693104,9.94366,3811.5,3810.8,0.55]
[1717310693327,0.04882908,3811.4,3810.8,0.55]
[1717310697578,0.04882908,3811.4,3810.7,2.62414]
[1717310699474,2.62378,3811.3,3810.7,2.62414]
[1717310699685,5.12308,3811.3,3810.7,2.62414]
[1717310699849,0.04708284,3811.2,3810.7,2.62414]
[1717310700545,0.04708284,3811.2,3810.6,0.55]
[1717310701988,0.04708284,3811.2,3810.3,0.55]
[1717310701989,2.4993,3811.0,3810.3,0.55]
[1717310702342,0.0470088,3810.9,3810.3,0.55]
[1717310702952,2.6711088,3810.9,3810.0,2.3142]
[1717310703194,2.6711088,3810.9,3810.0,2.8642]
[1717310703344,2.95931324,3810.9,3810.0,2.8642]
[1717310704261,2.62421,3810.7,3809.8,2.62479]
[1717310704475,2.4743,3810.6,3809.8,5.48899]
[1717310704682,2.52119323,3810.6,3809.8,2.62479]
[1717310704882,2.52119323,3810.6,3809.8,3.17479]
[1717310705391,2.52119323,3810.6,3809.8,2.62479]
[1717310705543,2.52119323,3810.6,3809.9,0.55]
[1717310707296,2.52119323,3810.6,3809.8,2.62479]
[1717310707478,2.52119323,3810.6,3810.0,0.55]
[1717310710502,2.52119323,3810.6,3809.8,2.62479]
[1717310710816,2.52119323,3810.6,3809.8,3.118689]
[1717310711000,2.52119323,3810.6,3810.0,0.55]
[1717310714191,2.52119323,3810.6,3809.8,3.118689]
[1717310714486,2.52119323,3810.6,3810.0,0.55]
[1717310718235,2.52119323,3810.6,3809.8,5.604089]
[1717310718236,0.04689323,3810.6,3810.1,2.4854]
[1717310718527,0.04689323,3810.6,3810.5,3.0354]
[1717310718830,9.94379,3811.3,3810.5,3.0354]
[1717310719031,7.32,3811.3,3811.0,0.55]
[1717310719231,2.62358,3811.6,3811.0,0.55]
[1717310719418,3.853918,3811.6,3811.0,0.55]
[1717310720313,0.04417878,3811.5,3811.0,0.55]
[1717310727432,0.04417878,3811.5,3811.0,2.8908]
[1717310727852,9.6247,3811.9,3811.0,2.8908]
[1717310728074,0.04424176,3811.4,3811.0,2.8908]
[1717310728380,0.04421158,3811.3,3811.0,2.8908]
[1717310728654,9.6247,3811.9,3811.2,0.55]
[1717310728953,9.6247,3811.9,3811.2,1.101467]
[1717310729855,7.32,3811.9,3811.2,1.101467]
[1717310730748,7.32,3811.9,3811.3,2.62375]
[1717310734024,2.62334,3812.0,3811.3,2.62375]
[1717310735153,0.04449245,3811.9,3811.3,2.62375]
[1717310735319,0.04449245,3811.9,3811.4,0.3725217]
[1717310737072,0.04449245,3811.9,3811.5,2.3408]
[1717310737367,10.1747,3812.3,3811.5,2.3408]
[1717310737546,0.04450807,3812.2,3811.5,2.3408]
[1717310740341,0.04450807,3812.2,3811.6,2.62356]
[1717310740542,2.62307,3812.4,3811.7,0.58868817]
[1717310740769,0.04459597,3812.3,3811.7,0.58868817]
[1717310751281,0.04459597,3812.3,3811.6,3.17356]
[1717310758499,0.04459597,3812.3,3811.7,2.4591]
[1717310759796,0.04459597,3812.3,3811.8,0.55]
[1717310760095,0.04459597,3812.3,3811.7,3.0091]
[1717310770895,0.04459597,3812.3,3811.9,0.55]
[1717310771077,0.04459597,3812.3,3812.0,2.74541]
[1717310771392,0.04470675,3812.2,3812.0,2.74541]
[1717310771722,9.94283,3812.7,3812.0,2.3895]
[1717310771915,0.04468908,3812.1,3812.0,2.3895]
[1717310772090,9.94283,3812.7,3812.0,2.3895]
[1717310772277,0.04468908,3812.1,3812.0,2.3895]
[1717310772478,9.94283,3812.7,3812.0,2.945791]
[1717310772707,0.04458922,3812.1,3812.0,2.3895]
[1717310773028,0.04460171,3812.1,3812.0,2.3895]
[1717310773331,5.62256,3813.1,3812.3,2.3895]
[1717310773512,1.90545383,3813.0,3812.6,0.55]
[1717310773704,2.62256,3813.1,3812.4,0.55]
[1717310774404,2.62256,3813.1,3812.5,2.3895]
[1717310776686,2.62256,3813.1,3812.6,0.55]
[1717310776890,2.62256,3813.1,3812.5,2.3895]
[1717310779505,7.32,3813.2,3812.5,5.01244]
[1717310780310,0.04350858,3813.1,3812.5,5.01244]
[1717310782520,0.04350858,3813.1,3812.6,0.55]
[1717310784021,2.62232,3813.5,3812.6,0.55]
[1717310784221,0.04383439,3813.4,3812.6,0.55]
[1717310784823,0.04383439,3813.4,3812.7,2.62279]
[1717310785131,0.04383439,3813.4,3812.9,2.329]
[1717310787343,0.04383439,3813.4,3812.9,2.879179]
[1717310794945,0.04383439,3813.4,3813.0,0.55]
[1717310795243,2.62206,3813.8,3813.1,2.329]
[1717310795449,0.04385602,3813.7,3813.1,2.329]
[1717310795954,0.04385602,3813.7,3813.1,4.95148]
[1717310797623,0.04385602,3813.7,3813.2,0.55]
[1717310797827,7.32,3814.0,3813.3,0.550148]
[1717310798029,0.043957,3813.9,3813.2,0.55]
[1717310799166,0.043957,3813.9,3813.1,4.95148]
[1717310799667,2.665997,3813.9,3813.1,4.95148]
[1717310799868,2.665997,3813.9,3813.2,2.3794]
[1717310803049,0.043957,3813.9,3813.2,2.3794]
[1717310803228,0.043957,3813.9,3813.4,0.55]
[1717310804363,0.043957,3813.9,3813.5,5.01879]
[1717310804721,2.62179,3814.2,3813.5,5.01879]
[1717310804943,0.04372173,3813.8,3813.5,5.01879]
[1717310805151,2.62179,3814.2,3813.5,5.01879]
[1717310805463,2.62179,3814.2,3813.6,0.556879]
[1717310805668,0.04382461,3814.1,3813.6,0.556879]
[1717310810278,2.62192,3814.0,3813.1,5.0191]
[1717310810768,0.59392474,3813.9,3813.1,5.0191]
[1717310810941,0.04392474,3813.9,3813.2,0.55691]
[1717310812969,0.04392474,3813.9,3813.2,1.10691]
[1717310823190,0.04392474,3813.9,3813.4,3.17232]
[1717310823391,0.04392474,3813.9,3813.5,2.468]
[1717310823582,2.39,3814.2,3813.5,2.468]
[1717310823765,0.04393982,3813.8,3813.5,3.087723]
[1717310823980,2.39,3814.2,3813.5,3.087723]
[1717310824185,0.04390967,3813.7,3813.5,3.087723]
[1717310824397,2.39,3814.2,3813.5,3.087723]
[1717310824708,2.39,3814.2,3813.5,2.468]
[1717310824845,0.04404267,3814.1,3813.5,2.468]
[1717310825051,0.04404267,3814.1,3813.6,0.55]
[1717310825395,2.62173,3814.3,3813.6,3.17214]
[1717310825603,0.04386571,3814.0,3813.7,0.3018]
[1717310825768,2.62173,3814.3,3813.7,0.3018]
[1717310825969,0.04388879,3813.9,3813.7,0.3018]
[1717310826203,2.62173,3814.3,3813.8,0.594194]
[1717310826805,2.62152,3814.6,3813.8,1.144194]
[1717310827095,2.62152,3814.6,3813.8,0.55]
[1717310827901,2.62152,3814.6,3813.6,3.17214]
[1717310828261,2.62152,3814.6,3813.8,2.62201]